bitfinex-derivatives/quotes_SOLF0:USTF0_20250529
["timestamp","ask_amount","ask_price","bid_price","bid_amount"]
[1748514095593,5.7923,172.58,172.56,0.04439509]
[1748514096389,0.04057771,172.6,172.56,0.04439509]
[1748514096987,0.04057771,172.6,172.57,5.7926]
[1748514097293,0.04057771,172.6,172.56,0.04439509]
[1748514098195,0.04057771,172.6,172.58,5.7921]
[1748514100594,0.04057771,172.6,172.59,5.792]
[1748514108402,0.04057771,172.6,172.58,5.7922]
[1748514114801,0.04057771,172.6,172.59,5.792]
[1748514115207,0.04057771,172.6,172.56,0.04439509]
[1748514115609,0.04057771,172.6,172.57,5.7923]
[1748514116005,0.04057771,172.6,172.56,0.04439509]
[1748514116916,0.04057771,172.6,172.58,5.7922]
[1748514118519,0.04057771,172.6,172.59,5.792]
[1748514119920,0.04057771,172.6,172.58,5.7922]
[1748514120819,0.04057771,172.6,172.56,0.04439509]
[1748514121025,5.7925,172.58,172.56,0.04439509]
[1748514121415,5.7921,172.59,172.56,0.04439509]
[1748514124017,0.04057771,172.6,172.56,0.04439509]
[1748514124220,3.26358426,172.6,172.56,0.04439509]
[1748514124418,0.04057771,172.6,172.56,0.04439509]
[1748514124625,0.04057771,172.6,172.58,3.22300655]
[1748514125029,0.04057771,172.6,172.59,5.792]
[1748514135148,7.771e-05,172.6,172.59,5.792]
[1748514147936,7.771e-05,172.6,172.59,9.01193001]
[1748514148738,7.771e-05,172.6,172.59,5.792]
[1748514148934,7.771e-05,172.6,172.59,9.01193001]
[1748514149439,29.64,172.68,172.66,5.7896]
[1748514150439,35.4291,172.68,172.65,5.82874911]
[1748514151338,35.4291,172.68,172.65,0.03884911]
[1748514151339,32.85993001,172.68,172.65,0.03884911]
[1748514152833,5.7895,172.67,172.65,0.03884911]
[1748514154138,38.64893001,172.68,172.65,5.82874911]
[1748514156350,38.64893001,172.68,172.65,0.03884911]
[1748514157037,5.7894,172.67,172.65,0.03884911]
[1748514158941,29.64,172.68,172.65,0.03884911]
[1748514159940,29.64,172.68,172.66,5.7894]
[1748514160345,0.03934499,172.69,172.66,5.7894]
[1748514160548,0.03934499,172.69,172.67,5.7893]
[1748514162344,0.03934499,172.69,172.66,5.7895]
[1748514162743,5.82804499,172.69,172.66,5.7895]
[1748514163145,0.03934499,172.69,172.65,5.82864911]
[1748514164054,5.7891,172.68,172.65,5.82864911]
[1748514164448,5.82804499,172.69,172.65,5.82864911]
[1748514168553,5.7889,172.68,172.65,5.82864911]
[1748514169455,5.7889,172.68,172.65,0.03884911]
[1748514169850,5.7895,172.67,172.65,0.03884911]
[1748514170047,3.259275,172.69,172.65,0.03884911]
[1748514171053,5.7894,172.67,172.65,0.03884911]
[1748514173847,5.7896,172.66,172.65,0.03884911]
[1748514176961,5.7894,172.67,172.65,0.03884911]
[1748514180557,5.7896,172.66,172.65,0.03884911]
[1748514182357,5.7908,172.63,172.58,29.64]
[1748514182558,5.7908,172.63,172.56,3.21993001]
[1748514183360,0.04037687,172.61,172.59,5.7917]
[1748514183563,0.04037687,172.61,172.58,0.04453812]
[1748514183865,0.04037687,172.61,172.58,5.83673812]
[1748514184370,5.83177687,172.61,172.58,0.04453812]
[1748514184665,0.04037687,172.61,172.58,0.04453812]
[1748514185063,0.04037687,172.61,172.58,5.83663812]
[1748514185957,0.04037687,172.61,172.58,0.04453812]
[1748514186164,0.04037687,172.61,172.59,5.7919]
[1748514186465,0.04037687,172.61,172.58,0.04453812]
[1748514186659,0.04037687,172.61,172.59,5.792]
[1748514189363,0.04037687,172.61,172.58,5.83673812]
[1748514190065,0.04037687,172.61,172.58,0.04453812]
[1748514190364,3.21993001,172.6,172.58,0.04453812]
[1748514190565,32.81993001,172.6,172.58,0.04453812]
[1748514190762,5.7919,172.59,172.58,0.04453812]
[1748514194571,29.6,172.6,172.58,0.04453812]
[1748514194966,0.04037687,172.61,172.58,5.83663812]
[1748514195459,0.04037687,172.61,172.58,0.04453812]
[1748514197875,5.7919,172.59,172.58,0.04453812]
[1748514199267,35.3919,172.59,172.58,0.04453812]
[1748514206373,5.7928,172.57,172.53,5.7939]
[1748514207474,5.83010216,172.57,172.53,5.83641041]
[1748514213985,9.05349368,172.57,172.53,5.83641041]
[1748514217987,5.793,172.56,172.53,5.83641041]
[1748514219076,5.7934,172.55,172.53,0.04251041]
[1748514219278,9.01679152,172.55,172.53,0.04251041]
[1748514224484,5.7936,172.54,172.53,0.04251041]
[1748514228891,29.58,172.55,172.53,0.04251041]
[1748514233496,35.3734,172.55,172.53,0.04251041]
[1748514234702,29.58,172.55,172.53,0.04251041]
[1748514240307,35.3733,172.55,172.53,0.04251041]
[1748514241611,5.7936,172.54,172.53,0.04251041]
[1748514241903,3.22339152,172.54,172.49,5.795]
[1748514242107,3.22339152,172.54,172.48,2.0087]
[1748514242308,9.01699152,172.54,172.5,5.7946]
[1748514242605,3.22339152,172.54,172.48,3.9548]
[1748514243107,5.83059233,172.53,172.5,5.7947]
[1748514243708,0.03659233,172.53,172.49,0.04021259]
[1748514245008,0.03659233,172.53,172.52,5.7943]
[1748514246206,32.76339152,172.58,172.55,5.7932]
[1748514246207,35.3325,172.58,172.55,5.7932]
[1748514246408,29.54,172.62,172.53,3.22339152]
[1748514246711,5.7914,172.61,172.58,5.7923]
[1748514247302,5.83459122,172.61,172.58,5.83129467]
[1748514248002,0.04319122,172.61,172.58,5.83129467]
[1748514248717,0.04319122,172.61,172.58,0.03899467]
[1748514249216,0.04319122,172.61,172.58,5.83119467]
[1748514251812,5.83449122,172.61,172.58,5.83119467]
[1748514253316,0.04319122,172.61,172.58,5.83119467]
[1748514255411,0.04319122,172.61,172.58,0.03899467]
[1748514255605,3.22339152,172.6,172.58,0.03899467]
[1748514256014,0.04319122,172.61,172.58,0.03899467]
[1748514256215,3.22339152,172.59,172.58,0.03899467]
[1748514257008,9.01529152,172.59,172.58,0.03899467]
[1748514258316,3.22339152,172.59,172.49,3.9904]
[1748514258620,3.22339152,172.56,172.49,3.9904]
[1748514258820,3.22339152,172.56,172.49,1.9741]
[1748514259323,0.04095667,172.54,172.51,0.03790073]
[1748514259618,0.04095667,172.54,172.52,5.7941]
[1748514260614,0.04095667,172.54,172.51,0.03790073]
[1748514260615,0.04095667,172.54,172.51,5.83240073]
[1748514262722,0.04095667,172.54,172.52,5.7943]
[1748514263826,5.83465667,172.54,172.51,5.83240073]
[1748514264124,3.26434819,172.54,172.51,0.03790073]
[1748514265018,5.7942,172.53,172.51,0.03790073]
[1748514269426,5.7943,172.52,172.51,0.03790073]
[1748514269627,29.54095667,172.54,172.43,2.0489]
[1748514269826,29.5,172.54,172.43,2.0489]
[1748514270224,34.53897907,172.54,172.43,2.0489]
[1748514270627,0.0366942,172.5,172.47,0.04337006]
[1748514270824,29.5366942,172.5,172.47,0.04337006]
[1748514272227,35.3318942,172.5,172.47,0.04337006]
[1748514272835,5.7955,172.49,172.47,0.04337006]
[1748514273035,29.5366942,172.5,172.39,29.5]
[1748514273237,31.4569,172.5,172.39,29.5]
[1748514273531,5.7959,172.48,172.39,29.5]
[1748514273935,5.7959,172.48,172.43,5.7971]
[1748514274129,5.7959,172.48,172.44,0.03996471]
[1748514274130,0.04191124,172.47,172.44,0.03996471]
[1748514274636,0.04191124,172.47,172.44,5.83686471]
[1748514275438,0.04191124,172.47,172.45,5.7966]
[1748514279037,0.04191124,172.47,172.46,5.7963]
[1748514282933,0.04191124,172.47,172.44,0.03996471]
[1748514283238,29.52,172.46,172.44,0.03996471]
[1748514283743,35.3166,172.46,172.44,0.03996471]
[1748514286638,29.52,172.46,172.44,0.03996471]
[1748514286838,29.52,172.46,172.44,5.83686471]
[1748514288439,29.52,172.46,172.45,5.7966]
[1748514289041,29.52,172.46,172.44,0.03996471]
[1748514289434,0.04191124,172.47,172.44,0.03996471]
[1748514290940,0.04191124,172.47,172.45,5.7966]
[1748514291537,0.04191124,172.47,172.46,5.7963]
[1748514302063,29.48,172.53,172.45,6.0535]
[1748514302257,29.48,172.56,172.45,6.0535]
[1748514302445,29.48,172.57,172.45,6.0535]
[1748514303153,0.04052469,172.53,172.49,0.04263933]
[1748514303756,5.83452469,172.53,172.5,5.7947]
[1748514305756,5.83452469,172.53,172.51,5.7945]
[1748514305757,0.04052469,172.53,172.51,5.7945]
[1748514306655,0.04052469,172.53,172.5,5.7948]
[1748514307955,5.83452469,172.53,172.49,5.83783933]
[1748514308153,0.04052469,172.53,172.49,5.83783933]
[1748514308955,5.83452469,172.53,172.49,5.83783933]
[1748514310155,5.7943,172.52,172.49,0.04263933]
[1748514310651,5.7947,172.51,172.49,0.04263933]
[1748514310857,29.50052469,172.53,172.49,0.04263933]
[1748514311563,29.50052469,172.53,172.41,29.46]
[1748514311764,29.46,172.53,172.4,29.46]
[1748514311966,5.7961,172.47,172.43,5.7972]
[1748514312259,29.46,172.49,172.39,31.5251]
[1748514312467,0.03768189,172.46,172.42,0.04145571]
[1748514314761,0.03768189,172.46,172.43,5.7973]
[1748514315160,0.03768189,172.46,172.42,0.04145571]
[1748514316161,5.83398189,172.46,172.42,5.83885571]
[1748514318765,5.7967,172.45,172.42,0.04145571]
[1748514319760,5.7971,172.44,172.42,0.04145571]
[1748514320262,0.03768189,172.46,172.42,0.04145571]
[1748514320469,5.7973,172.43,172.42,0.04145571]
[1748514323668,29.48,172.45,172.42,0.04145571]
[1748514324267,35.2766,172.45,172.42,5.83885571]
[1748514324568,29.48,172.45,172.42,5.83885571]
[1748514325465,35.2767,172.45,172.42,5.83885571]
[1748514325667,0.03768189,172.46,172.43,5.797]
[1748514326962,5.83398189,172.46,172.43,5.797]
[1748514327468,5.83398189,172.46,172.42,5.83895571]
[1748514328459,5.83398189,172.46,172.43,5.7973]
[1748514330168,0.03768189,172.46,172.43,5.7973]
[1748514330674,0.03768189,172.46,172.44,5.797]
[1748514331064,0.03768189,172.46,172.42,0.04145571]
[1748514331265,0.03768189,172.46,172.43,5.797]
[1748514331970,5.83398189,172.46,172.43,5.797]
[1748514332176,0.03768189,172.46,172.42,0.04145571]
[1748514332579,5.7967,172.45,172.42,0.04145571]
[1748514333171,5.797,172.44,172.42,0.04145571]
[1748514337282,5.7973,172.43,172.42,0.04145571]
[1748514338493,29.44,172.44,172.36,29.48]
[1748514338782,29.44,172.44,172.37,5.7992]
[1748514338983,5.7981,172.41,172.37,5.7992]
[1748514339490,5.83743472,172.41,172.37,5.84029603]
[1748514342089,0.03933472,172.41,172.37,0.04109603]
[1748514342989,0.03933472,172.41,172.38,5.7989]
[1748514343193,0.03933472,172.41,172.37,0.04109603]
[1748514343690,0.03933472,172.41,172.38,5.7989]
[1748514344588,0.03933472,172.41,172.39,5.7986]
[1748514345383,0.03933472,172.41,172.37,5.84009603]
[1748514348492,0.03933472,172.41,172.38,5.7988]
[1748514351096,0.03933472,172.41,172.37,5.84029603]
[1748514353892,5.83743472,172.41,172.37,5.84029603]
[1748514354391,0.03933472,172.41,172.37,0.04109603]
[1748514355890,29.4,172.4,172.37,0.04109603]
[1748514356692,5.7986,172.39,172.37,0.04109603]
[1748514359694,29.4,172.4,172.3,29.4]
[1748514359991,29.4,172.4,172.31,3.9031]
[1748514360686,0.0418035,172.37,172.34,0.02676832]
[1748514360890,0.0418035,172.37,172.35,5.8]
[1748514363203,0.0418035,172.37,172.36,5.7995]
[1748514365201,29.42,172.44,172.4,5.7982]
[1748514365695,35.2171,172.44,172.35,1.9216]
[1748514365900,29.42,172.44,172.35,1.9216]
[1748514366306,0.04041933,172.41,172.4,5.7981]
[1748514367001,0.04041933,172.41,172.39,5.7985]
[1748514369711,0.04041933,172.41,172.4,5.7982]
[1748514371308,5.7963,172.46,172.41,5.7976]
[1748514372309,0.04281113,172.45,172.42,0.03877143]
[1748514373208,5.83941113,172.45,172.42,0.03877143]
[1748514374710,5.7968,172.44,172.42,0.03877143]
[1748514376409,5.7971,172.43,172.42,0.03877143]
[1748514378813,5.7969,172.44,172.42,0.03877143]
[1748514393625,0.04281113,172.45,172.42,0.03877143]
[1748514395223,3.27058304,172.45,172.42,0.03877143]
[1748514395523,5.7971,172.44,172.42,0.03877143]
[1748514395725,3.27058304,172.45,172.42,0.03877143]
[1748514396724,5.7971,172.43,172.42,0.03877143]
[1748514397126,32.58777191,172.43,172.35,31.2816]
[1748514397329,5.7982,172.4,172.35,31.2816]
[1748514398031,0.03725594,172.39,172.36,5.84035077]
[1748514406432,5.83585594,172.39,172.36,0.04105077]
[1748514406724,5.7991,172.37,172.36,0.04105077]
[1748514411433,5.8001,172.35,172.31,3.9393]
[1748514411736,3.22777191,172.37,172.31,3.9393]
[1748514412139,5.8,172.35,172.31,9.7402]
[1748514412535,5.83934875,172.35,172.31,9.76936895]
[1748514414635,5.83934875,172.35,172.32,5.8008]
[1748514415636,5.8002,172.34,172.31,9.76946895]
[1748514415844,5.8002,172.34,172.31,5.83016895]
[1748514419342,0.03934875,172.35,172.32,3.22777191]
[1748514420548,0.03934875,172.35,172.33,5.8005]
[1748514420745,0.03934875,172.35,172.32,3.22777191]
[1748514421946,0.03934875,172.35,172.34,5.8001]
[1748514448674,4.875e-05,172.35,172.34,5.8001]
[1748514461479,4.875e-05,172.35,172.33,5.8003]
[1748514461681,4.875e-05,172.35,172.31,29.36916895]
[1748514461987,4.875e-05,172.35,172.31,0.02916895]
[1748514462684,5.8002,172.34,172.31,5.83016895]
[1748514464289,4.875e-05,172.35,172.31,0.02916895]
[1748514465988,4.875e-05,172.35,172.32,5.8006]
[1748514466689,5.79994875,172.35,172.32,5.8006]
[1748514468085,4.875e-05,172.35,172.31,0.02916895]
[1748514468682,4.875e-05,172.35,172.32,5.8008]
[1748514469191,4.875e-05,172.35,172.33,5.8005]
[1748514471395,4.875e-05,172.35,172.32,5.8007]
[1748514472490,4.875e-05,172.35,172.33,5.8004]
[1748514473693,4.875e-05,172.35,172.31,0.02916895]
[1748514474497,4.875e-05,172.35,172.34,5.8002]
[1748514482007,4.875e-05,172.35,172.33,5.8004]
[1748514482503,4.875e-05,172.35,172.34,5.8002]
[1748514488209,4.875e-05,172.35,172.33,5.8004]
[1748514491108,4.875e-05,172.35,172.34,5.8002]
[1748514496914,4.875e-05,172.35,172.33,5.8004]
[1748514498710,5.79994875,172.35,172.32,5.8007]
[1748514498917,4.875e-05,172.35,172.31,0.02916895]
[1748514499615,5.8003,172.34,172.32,5.8008]
[1748514499814,4.875e-05,172.35,172.32,5.8008]
[1748514500316,4.875e-05,172.35,172.33,5.8005]
[1748514502919,5.79994875,172.35,172.33,5.8005]
[1748514503711,5.8002,172.34,172.32,5.8007]
[1748514504014,4.875e-05,172.35,172.31,0.02916895]
[1748514505224,5.8004,172.34,172.31,5.83036895]
[1748514505419,3.22782066,172.35,172.31,0.02916895]
[1748514505622,32.48782066,172.35,172.31,0.02916895]
[1748514506024,5.8008,172.33,172.31,0.02916895]
[1748514507123,5.8003,172.34,172.31,0.02916895]
[1748514508027,5.8003,172.34,172.31,5.83026895]
[1748514509422,32.48782066,172.35,172.31,0.02916895]
[1748514510122,32.48782066,172.35,172.32,5.8008]
[1748514511227,32.48782066,172.35,172.33,5.8005]
[1748514513833,38.28772066,172.35,172.32,5.8007]
[1748514516634,32.48782066,172.35,172.33,5.8005]
[1748514518135,38.28772066,172.35,172.32,5.8007]
[1748514519635,38.28772066,172.35,172.31,5.83026895]
[1748514519636,5.8002,172.34,172.31,5.83026895]
[1748514520839,32.48782066,172.35,172.31,0.02916895]
[1748514521839,5.8007,172.33,172.31,0.02916895]
[1748514522032,32.48782066,172.35,172.31,0.02916895]
[1748514523940,5.8007,172.33,172.31,0.02916895]
[1748514524239,32.48782066,172.35,172.31,0.02916895]
[1748514524737,3.22777191,172.33,172.31,0.02916895]
[1748514525138,5.8008,172.32,172.31,0.02916895]
[1748514528641,29.26004875,172.35,172.31,0.02916895]
[1748514529743,29.26004875,172.35,172.33,5.8003]
[1748514531143,29.26004875,172.35,172.34,5.8002]
[1748514532643,4.875e-05,172.35,172.34,5.8002]
[1748514542048,4.875e-05,172.35,172.31,0.02916895]
[1748514543949,4.875e-05,172.35,172.34,5.8002]
[1748514544346,3.22782066,172.35,172.31,0.02916895]
[1748514545146,5.8005,172.34,172.31,0.02916895]
[1748514545343,3.22782066,172.35,172.31,0.02916895]
[1748514546448,5.8007,172.33,172.31,0.02916895]
[1748514549446,5.8009,172.32,172.31,0.02916895]
[1748514552155,5.8002,172.34,172.31,0.02916895]
[1748514553954,5.8002,172.34,172.31,5.83026895]
[1748514556356,5.8006,172.33,172.31,0.02916895]
[1748514557661,5.8009,172.32,172.31,0.02916895]
[1748514559862,5.8007,172.33,172.31,0.02916895]
[1748514560164,32.42782066,172.35,172.31,0.02916895]
[1748514560569,5.8009,172.32,172.31,0.02916895]
[1748514564678,5.8021,172.29,172.23,32.42777191]
[1748514565474,5.8021,172.29,172.26,5.8027]
[1748514565674,5.84066077,172.29,172.26,5.842]
[1748514565871,0.03856077,172.29,172.27,5.8025]
[1748514567174,0.03856077,172.29,172.28,5.8022]
[1748514567875,0.03856077,172.29,172.26,0.0393]
[1748514568476,0.03856077,172.29,172.26,5.8419]
[1748514569377,0.03856077,172.29,172.27,5.8025]
[1748514569780,0.03856077,172.29,172.26,5.8421]
[1748514570279,0.03856077,172.29,172.26,0.0393]
[1748514571283,5.8023,172.28,172.26,0.0393]
[1748514571979,0.03856077,172.29,172.26,0.0393]
[1748514571980,3.26633268,172.29,172.26,0.0393]
[1748514572577,9.06843268,172.29,172.26,0.0393]
[1748514573382,3.26633268,172.29,172.26,5.8422]
[1748514573586,3.26633268,172.29,172.26,0.0393]
[1748514573772,3.22777191,172.27,172.26,0.0393]
[1748514573972,9.03027191,172.27,172.26,0.0393]
[1748514575982,32.40777191,172.27,172.17,29.18]
[1748514576184,3.22777191,172.25,172.17,29.18]
[1748514576585,5.8038,172.24,172.17,29.18]
[1748514576788,0.03716297,172.22,172.17,29.18]
[1748514577287,0.03716297,172.22,172.2,5.8048]
[1748514577890,0.03716297,172.22,172.17,29.18]
[1748514577891,0.03716297,172.22,172.19,5.8051]
[1748514579085,0.03716297,172.22,172.2,5.8048]
[1748514580791,0.03716297,172.22,172.19,5.8052]
[1748514581693,9.06923488,172.22,172.18,5.8055]
[1748514582189,5.8047,172.21,172.17,5.8058]
[1748514583088,3.26493488,172.22,172.17,5.8058]
[1748514583691,3.22777191,172.2,172.17,5.8058]
[1748514583886,3.22777191,172.2,172.16,5.8062]
[1748514584092,9.03287191,172.2,172.16,5.8062]
[1748514584393,9.03287191,172.2,172.17,5.8059]
[1748514584595,9.03287191,172.2,172.14,29.18]
[1748514584990,9.03287191,172.2,172.16,5.8061]
[1748514585893,5.8054,172.19,172.15,5.8065]
[1748514586090,0.03703022,172.19,172.13,1.9415]
[1748514586395,3.22777191,172.18,172.12,2.0803]
[1748514586897,5.806,172.17,172.12,2.0803]
[1748514587095,3.22777191,172.18,172.12,2.0803]
[1748514587291,5.8065,172.16,172.12,2.0803]
[1748514587493,5.8065,172.16,172.13,5.8071]
[1748514588193,5.8059,172.17,172.13,5.8071]
[1748514588396,5.8059,172.17,172.14,5.8069]
[1748514588795,5.8059,172.17,172.08,31.2363]
[1748514588796,3.22777191,172.16,172.08,31.2363]
[1748514589101,0.0432354,172.14,172.12,5.8074]
[1748514589598,0.0432354,172.14,172.08,31.2363]
[1748514589902,0.0432354,172.14,172.13,5.8073]
[1748514590297,0.0432354,172.14,172.08,31.2363]
[1748514590698,0.0432354,172.14,172.12,5.8074]
[1748514590897,0.0432354,172.14,172.08,31.2363]
[1748514591301,0.0432354,172.14,172.12,5.8076]
[1748514591496,0.0432354,172.14,172.08,31.2363]
[1748514591803,5.8501354,172.14,172.08,31.2363]
[1748514592299,5.8501354,172.14,172.11,5.8077]
[1748514592498,0.0432354,172.14,172.08,31.2363]
[1748514593007,0.0432354,172.14,172.12,5.8074]
[1748514593197,0.0432354,172.14,172.08,31.2363]
[1748514594504,0.0432354,172.14,172.12,5.8075]
[1748514595001,0.0432354,172.14,172.08,31.2363]
[1748514595203,0.0432354,172.14,172.12,5.8073]
[1748514598003,5.8502354,172.14,172.08,31.2363]
[1748514598999,5.8502354,172.14,172.1,5.808]
[1748514599506,5.8502354,172.14,172.11,5.8079]
[1748514599701,0.0432354,172.14,172.08,31.2363]
[1748514600109,0.0432354,172.14,172.12,5.8076]
[1748514600300,0.0432354,172.14,172.08,31.2363]
[1748514601905,0.0432354,172.14,172.11,5.8078]
[1748514602410,0.0432354,172.14,172.08,31.2363]
[1748514602612,0.0432354,172.14,172.1,5.808]
[1748514603206,0.0432354,172.14,172.09,5.8085]
[1748514603414,0.0432354,172.14,172.08,2.0563]
[1748514604006,5.8074,172.13,172.1,5.808]
[1748514604508,5.8075,172.13,172.1,5.808]
[1748514605716,5.8502354,172.14,172.11,5.8078]
[1748514606112,0.0432354,172.14,172.07,2.0266]
[1748514607415,0.0432354,172.14,172.13,5.8073]
[1748514607913,29.2,172.18,172.09,29.2]
[1748514608218,29.2,172.19,172.09,29.2]
[1748514608416,29.2,172.21,172.09,29.2]
[1748514608917,0.03772467,172.17,172.13,0.0381384]
[1748514609913,0.03772467,172.17,172.16,5.8062]
[1748514622427,2.467e-05,172.17,172.16,5.8062]
[1748514660857,2.467e-05,172.17,172.16,9.0432121]
[1748514662554,29.18,172.24,172.22,5.8042]
[1748514662755,34.5055121,172.27,172.22,5.8042]
[1748514663450,5.8029,172.26,172.22,5.8042]
[1748514663653,5.84357574,172.26,172.22,5.84127106]
[1748514664064,5.84357574,172.26,172.23,5.8038]
[1748514664453,5.8032,172.25,172.22,5.84117106]
[1748514664965,5.8038,172.24,172.22,0.03707106]
[1748514665159,0.04067574,172.26,172.22,0.03707106]
[1748514665865,5.8039,172.23,172.22,0.03707106]
[1748514673775,5.8036,172.24,172.22,0.03707106]
[1748514676981,5.8032,172.25,172.22,5.84127106]
[1748514679878,5.8036,172.24,172.22,0.03707106]
[1748514681881,0.04067574,172.26,172.23,5.8039]
[1748514682083,0.04067574,172.26,172.22,0.03707106]
[1748514682888,5.8034,172.25,172.22,5.84117106]
[1748514684078,5.8035,172.24,172.22,5.84117106]
[1748514686287,5.8033,172.25,172.22,5.84117106]
[1748514686885,9.07893141,172.26,172.23,5.8039]
[1748514687489,5.8033,172.25,172.22,5.84117106]
[1748514687688,3.27593141,172.26,172.22,0.03707106]
[1748514688588,9.07903141,172.26,172.23,5.8039]
[1748514688789,3.27593141,172.26,172.22,0.03707106]
[1748514689883,5.8033,172.25,172.22,5.84117106]
[1748514690794,9.07883141,172.26,172.23,5.8039]
[1748514690993,9.07883141,172.26,172.22,0.03707106]
[1748514691591,5.8032,172.25,172.22,5.84117106]
[1748514694899,0.04067574,172.26,172.22,0.03707106]
[1748514695398,0.04067574,172.26,172.23,5.8038]
[1748514695791,0.04067574,172.26,172.22,0.03707106]
[1748514696100,5.8033,172.25,172.22,5.84107106]
[1748514697001,0.04067574,172.26,172.23,5.8038]
[1748514697601,5.84357574,172.26,172.23,5.8038]
[1748514701009,0.04067574,172.26,172.22,0.03707106]
[1748514701203,3.23525567,172.25,172.22,0.03707106]
[1748514702905,5.8039,172.23,172.22,0.03707106]
[1748514709608,3.23525567,172.23,172.15,1.9954]
[1748514709814,5.8051,172.2,172.15,1.9954]
[1748514710605,5.8051,172.2,172.17,5.8057]
[1748514710805,0.04074183,172.19,172.16,0.04388901]
[1748514712006,0.04074183,172.19,172.17,5.8059]
[1748514712206,0.04074183,172.19,172.16,0.04388901]
[1748514712406,5.8059,172.17,172.16,0.04388901]
[1748514712911,3.23525567,172.17,172.1,29.16]
[1748514713111,3.23525567,172.17,172.12,5.8073]
[1748514713112,5.8063,172.16,172.12,5.8073]
[1748514713711,5.84490766,172.16,172.12,5.8073]
[1748514714316,5.84490766,172.16,172.13,5.8072]
[1748514715522,5.84490766,172.16,172.1,29.16]
[1748514715523,0.03860766,172.16,172.11,3.23525567]
[1748514716927,0.03860766,172.16,172.13,5.8069]
[1748514717322,0.03860766,172.16,172.1,32.39525567]
[1748514717526,0.03860766,172.16,172.12,5.8074]
[1748514717821,0.03860766,172.16,172.1,32.39525567]
[1748514718027,5.84510766,172.16,172.13,5.8072]
[1748514718227,0.03860766,172.16,172.1,32.39525567]
[1748514719930,0.03860766,172.16,172.13,5.8071]
[1748514720228,0.03860766,172.16,172.12,3.23525567]
[1748514720930,0.03860766,172.16,172.13,1.9896]
[1748514721335,0.03860766,172.16,172.15,5.8066]
[1748514722729,29.16,172.2,172.19,5.8052]
[1748514724630,0.03714279,172.21,172.18,0.03860766]
[1748514725434,0.03714279,172.21,172.19,5.8051]
[1748514726730,0.03714279,172.21,172.2,5.8049]
[1748514738445,0.03714279,172.21,172.19,5.8051]
[1748514738946,0.03714279,172.21,172.18,0.03860766]
[1748514739144,3.27239846,172.21,172.18,0.03860766]
[1748514739940,5.8051,172.2,172.18,0.03860766]
[1748514746654,9.07699846,172.21,172.18,5.84410766]
[1748514750355,5.8049,172.2,172.18,0.03860766]
[1748514753359,9.07699846,172.21,172.18,0.03860766]
[1748514754055,3.27239846,172.21,172.18,0.03860766]
[1748514754257,5.8049,172.2,172.18,0.03860766]
[1748514759769,5.8052,172.19,172.18,0.03860766]
[1748514761367,5.805,172.2,172.18,0.03860766]
[1748514763871,5.8052,172.19,172.18,0.03860766]
[1748514771580,5.8067,172.15,172.1,32.35525567]
[1748514772372,5.8067,172.15,172.12,5.8075]
[1748514772577,0.03668409,172.15,172.1,32.35525567]
[1748514773684,0.03668409,172.15,172.13,5.8072]
[1748514776177,5.84328409,172.15,172.12,5.8075]
[1748514776367,0.03668409,172.15,172.12,5.8075]
[1748514776975,5.84338409,172.15,172.12,5.8075]
[1748514777274,0.03668409,172.15,172.11,5.8078]
[1748514777877,5.8071,172.14,172.08,5.19335567]
[1748514778783,5.8073,172.13,172.08,5.19335567]
[1748514778979,0.03668409,172.15,172.08,5.19335567]
[1748514779683,5.807,172.14,172.1,5.8082]
[1748514779882,5.807,172.14,172.08,5.19335567]
[1748514780079,5.807,172.14,172.08,1.9581]
[1748514780280,5.807,172.14,172.11,5.8079]
[1748514780480,0.03668409,172.15,172.08,1.9581]
[1748514780784,0.03668409,172.15,172.11,5.8077]
[1748514780975,0.03668409,172.15,172.08,1.9581]
[1748514781484,5.84338409,172.15,172.08,1.9581]
[1748514782382,0.03668409,172.15,172.08,1.9581]
[1748514783282,0.03668409,172.15,172.09,3.23525567]
[1748514783683,0.03668409,172.15,172.14,5.8069]
[1748514795588,29.1,172.24,172.13,5.26215567]
[1748514795882,32.33525567,172.24,172.16,3.23525567]
[1748514796084,5.8041,172.23,172.2,5.8047]
[1748514796592,0.04275098,172.23,172.2,0.03668409]
[1748514796892,0.04275098,172.23,172.2,5.84138409]
[1748514797796,0.04275098,172.23,172.2,0.03668409]
[1748514798592,0.04275098,172.23,172.22,5.8042]
[1748514799190,0.04275098,172.23,172.21,5.8045]